[Event "*** Titled Tuesday Blitz"]
[Site "Chess.com"]
[Date "2020.12.01"]
[Round "4"]
[White "csati17"]
[Black "lucachess49"]
[Result "1-0"]
[WhiteElo "2597"]
[BlackElo "2352"]
[TimeControl "180+1"]
[EndTime "10:37:24 PST"]
[Termination "csati17 won by checkmate"]

1. c4 {[%clk 0:02:50.5]} 1... Nf6 {[%clk 0:02:59.6]} 2. Nc3 {[%clk 0:02:50.6]}
2... e6 {[%clk 0:03:00]} 3. e4 {[%clk 0:02:50.9]} 3... d5 {[%clk 0:03:00.3]} 4.
cxd5 {[%clk 0:02:51.8]} 4... exd5 {[%clk 0:03:00.3]} 5. e5 {[%clk 0:02:52.7]}
5... Ne4 {[%clk 0:03:00]} 6. Nf3 {[%clk 0:02:52.6]} 6... Nxc3 {[%clk 0:02:42.6]}
7. dxc3 {[%clk 0:02:51.6]} 7... Be7 {[%clk 0:02:42.4]} 8. Bd3 {[%clk 0:02:51.6]}
8... O-O {[%clk 0:02:41.9]} 9. O-O {[%clk 0:02:50.5]} 9... Bg4 {[%clk
0:02:36.9]} 10. Bc2 {[%clk 0:02:45.2]} 10... Bh5 {[%clk 0:02:34.2]} 11. Bf4
{[%clk 0:02:28.9]} 11... Bg6 {[%clk 0:02:32]} 12. Nd4 {[%clk 0:02:19.9]} 12...
Nc6 {[%clk 0:02:24.2]} 13. Nf5 {[%clk 0:02:14.8]} 13... Bg5 {[%clk 0:02:22.3]}
14. Bg3 {[%clk 0:02:10.3]} 14... Qd7 {[%clk 0:02:00.6]} 15. Qg4 {[%clk
0:02:06.6]} 15... Qd8 {[%clk 0:01:54.8]} 16. Rad1 {[%clk 0:01:53.4]} 16... h5
{[%clk 0:01:38.2]} 17. Qf3 {[%clk 0:01:50.5]} 17... h4 {[%clk 0:01:33.9]} 18.
Rxd5 {[%clk 0:01:41.1]} 18... Qe8 {[%clk 0:01:30.8]} 19. Bf4 {[%clk 0:01:37.3]}
19... Bxf4 {[%clk 0:01:22.9]} 20. Qxf4 {[%clk 0:01:38.2]} 20... h3 {[%clk
0:01:23.5]} 21. Re1 {[%clk 0:01:21.8]} 21... Rd8 {[%clk 0:01:13.6]} 22. Rxd8
{[%clk 0:00:52.6]} 22... Qxd8 {[%clk 0:01:14.5]} 23. Bb3 {[%clk 0:00:49]} 23...
Qd3 {[%clk 0:00:58.6]} 24. Ng3 {[%clk 0:00:42.7]} 24... hxg2 {[%clk 0:00:48.6]}
25. e6 {[%clk 0:00:38.5]} 25... fxe6 {[%clk 0:00:43]} 26. Bxe6+ {[%clk
0:00:38.3]} 26... Bf7 {[%clk 0:00:42.9]} 27. Bxf7+ {[%clk 0:00:38.6]} 27... Rxf7
{[%clk 0:00:41]} 28. Re8+ {[%clk 0:00:38.7]} 28... Kh7 {[%clk 0:00:41.2]} 29.
Qh4+ {[%clk 0:00:33.2]} 29... Kg6 {[%clk 0:00:37]} 30. Re6+ {[%clk 0:00:33.8]}
30... Rf6 {[%clk 0:00:36.6]} 31. Qh5# {[%clk 0:00:34.3]} 1-0

[Event "*** Titled Tuesday Blitz"]
[Site "Chess.com"]
[Date "2020.12.01"]
[Round "4"]
[White "arminmusovic"]
[Black "Msb2"]
[Result "0-1"]
[WhiteElo "2533"]
[BlackElo "2840"]
[TimeControl "180+1"]
[EndTime "10:37:27 PST"]
[Termination "Msb2 won by resignation"]

1. a3 {[%clk 0:03:00.9]} 1... d5 {[%clk 0:02:59.5]} 2. Nc3 {[%clk 0:03:01.1]}
2... d4 {[%clk 0:02:57.5]} 3. Ne4 {[%clk 0:03:01.5]} 3... e5 {[%clk 0:02:58]} 4.
Ng3 {[%clk 0:03:01.6]} 4... Nc6 {[%clk 0:02:53.3]} 5. e4 {[%clk 0:03:02]} 5...
dxe3 {[%clk 0:02:53.5]} 6. f3 {[%clk 0:03:02.6]} 6... exd2+ {[%clk 0:02:52.2]}
7. Bxd2 {[%clk 0:03:02.6]} 7... Nf6 {[%clk 0:02:51.5]} 8. Be3 {[%clk 0:02:57.9]}
8... Nd5 {[%clk 0:02:45.8]} 9. Bf2 {[%clk 0:02:56.3]} 9... Be7 {[%clk
0:02:41.2]} 10. Bc4 {[%clk 0:02:50.1]} 10... Nf4 {[%clk 0:02:32.1]} 11. Qxd8+
{[%clk 0:02:47.5]} 11... Nxd8 {[%clk 0:02:33]} 12. Bb5+ {[%clk 0:02:41.8]} 12...
c6 {[%clk 0:02:32.4]} 13. Bf1 {[%clk 0:02:42.7]} 13... O-O {[%clk 0:02:17.1]}
14. O-O-O {[%clk 0:02:41.8]} 14... Nde6 {[%clk 0:02:00.9]} 15. N1e2 {[%clk
0:02:41.5]} 15... Nxe2+ {[%clk 0:02:00]} 16. Bxe2 {[%clk 0:02:41.5]} 16... Nf4
{[%clk 0:02:00.5]} 17. Bf1 {[%clk 0:02:37.6]} 17... Be6 {[%clk 0:02:00.8]} 18.
Ne2 {[%clk 0:02:37.1]} 18... Bg5 {[%clk 0:01:57.7]} 19. Nxf4 {[%clk 0:02:33.5]}
19... Bxf4+ {[%clk 0:01:58.6]} 20. Kb1 {[%clk 0:02:34]} 20... Rfd8 {[%clk
0:01:52.6]} 21. Bd3 {[%clk 0:02:29.9]} 21... Bg5 {[%clk 0:01:42.8]} 22. Rhe1
{[%clk 0:02:17.5]} 22... f6 {[%clk 0:01:42.1]} 23. a4 {[%clk 0:02:16.7]} 23...
g6 {[%clk 0:01:37.7]} 24. Bf1 {[%clk 0:02:13.9]} 24... Kf7 {[%clk 0:01:30.5]}
25. a5 {[%clk 0:02:13.8]} 25... Bd2 {[%clk 0:01:16.9]} 26. Rxd2 {[%clk
0:01:47.8]} 26... Rxd2 {[%clk 0:01:17.8]} 27. Be3 {[%clk 0:01:47.6]} 27... Rd7
{[%clk 0:01:17.5]} 28. b4 {[%clk 0:01:45.1]} 28... a6 {[%clk 0:01:09.1]} 29. Kc1
{[%clk 0:01:45.4]} 29... g5 {[%clk 0:01:04.6]} 30. Bb6 {[%clk 0:01:42.6]} 30...
h5 {[%clk 0:01:00.8]} 31. Bd3 {[%clk 0:01:38.9]} 31... g4 {[%clk 0:00:57.1]} 32.
Be2 {[%clk 0:01:36.2]} 32... Rg8 {[%clk 0:00:56.1]} 33. fxg4 {[%clk 0:01:34.2]}
33... Bxg4 {[%clk 0:00:55.4]} 34. Bf1 {[%clk 0:01:33.7]} 34... Bf5 {[%clk
0:00:55.1]} 35. Bc4+ {[%clk 0:01:30.6]} 35... Be6 {[%clk 0:00:54.4]} 36. Bf1
{[%clk 0:01:30.1]} 36... Rg4 {[%clk 0:00:54.6]} 37. c3 {[%clk 0:01:29.1]} 37...
h4 {[%clk 0:00:52.9]} 38. h3 {[%clk 0:01:26.2]} 38... Rg3 {[%clk 0:00:53.1]} 39.
Be3 {[%clk 0:01:20.4]} 39... Bf5 {[%clk 0:00:52.2]} 40. Kb2 {[%clk 0:01:17.1]}
40... Bd3 {[%clk 0:00:45.9]} 41. Bf2 {[%clk 0:01:13.9]} 41... Bxf1 {[%clk
0:00:41.7]} 42. Bxg3 {[%clk 0:01:14]} 42... hxg3 {[%clk 0:00:42.6]} 43. Rxf1
{[%clk 0:01:11.4]} 43... Rd2+ {[%clk 0:00:43]} 44. Kb3 {[%clk 0:01:11.9]} 44...
Rxg2 {[%clk 0:00:43.4]} 45. c4 {[%clk 0:01:11]} 45... Rf2 {[%clk 0:00:43.1]} 46.
Rg1 {[%clk 0:01:10.7]} 46... g2 {[%clk 0:00:43.5]} 47. h4 {[%clk 0:01:10.6]}
47... f5 {[%clk 0:00:43.8]} 48. Kc3 {[%clk 0:01:10.7]} 48... f4 {[%clk
0:00:44.2]} 49. Kd3 {[%clk 0:01:11.2]} 49... f3 {[%clk 0:00:44.8]} 0-1

[Event "*** Titled Tuesday Blitz"]
[Site "Chess.com"]
[Date "2020.12.01"]
[Round "4"]
[White "Jospem"]
[Black "Blackmind96"]
[Result "1-0"]
[WhiteElo "2972"]
[BlackElo "2770"]
[TimeControl "180+1"]
[EndTime "10:37:33 PST"]
[Termination "Jospem won by resignation"]

1. e4 {[%clk 0:03:00.9]} 1... e6 {[%clk 0:02:59.5]} 2. d4 {[%clk 0:03:00.5]}
2... d5 {[%clk 0:03:00.1]} 3. Nc3 {[%clk 0:03:00.8]} 3... Nf6 {[%clk 0:02:59.8]}
4. exd5 {[%clk 0:02:58.1]} 4... exd5 {[%clk 0:03:00.7]} 5. Bd3 {[%clk
0:02:58.1]} 5... Bd6 {[%clk 0:02:58.9]} 6. Bg5 {[%clk 0:02:55.3]} 6... c6 {[%clk
0:02:58.8]} 7. Qd2 {[%clk 0:02:55.2]} 7... Bg4 {[%clk 0:02:52]} 8. f3 {[%clk
0:02:48.8]} 8... Bh5 {[%clk 0:02:51.9]} 9. O-O-O {[%clk 0:02:49.2]} 9... O-O
{[%clk 0:02:50.9]} 10. h4 {[%clk 0:02:47.5]} 10... Nbd7 {[%clk 0:02:49.4]} 11.
Bf5 {[%clk 0:02:36.2]} 11... Qc7 {[%clk 0:02:42.2]} 12. g4 {[%clk 0:02:31.4]}
12... Bg6 {[%clk 0:02:40.6]} 13. Bxd7 {[%clk 0:02:31.2]} 13... Nxd7 {[%clk
0:02:41.5]} 14. h5 {[%clk 0:02:31.3]} 14... f6 {[%clk 0:02:41.4]} 15. hxg6
{[%clk 0:02:17.7]} 15... fxg5 {[%clk 0:02:41]} 16. gxh7+ {[%clk 0:02:18.6]}
16... Kh8 {[%clk 0:02:40.8]} 17. Kb1 {[%clk 0:02:19.5]} 17... Bf4 {[%clk
0:02:36.2]} 18. Qd3 {[%clk 0:02:06.2]} 18... Rae8 {[%clk 0:02:17.1]} 19. Nce2
{[%clk 0:01:33.6]} 19... Re3 {[%clk 0:02:01.5]} 20. Qg6 {[%clk 0:01:29.8]} 20...
Rf6 {[%clk 0:01:48.4]} 21. Qh5 {[%clk 0:01:08.6]} 21... Nf8 {[%clk 0:01:05.1]}
22. Nxf4 {[%clk 0:00:57.9]} 22... Qxf4 {[%clk 0:00:11.6]} 23. Nh3 {[%clk
0:00:47.6]} 23... Qxf3 {[%clk 0:00:12]} 24. Nxg5 {[%clk 0:00:47.1]} 24... Qg2
{[%clk 0:00:12.5]} 25. Nf7+ {[%clk 0:00:43.3]} 1-0

[Event "*** Titled Tuesday Blitz"]
[Site "Chess.com"]
[Date "2020.12.01"]
[Round "4"]
[White "Kostya_Nikologorskiy"]
[Black "yourstrulyme"]
[Result "1-0"]
[WhiteElo "2706"]
[BlackElo "2485"]
[TimeControl "180+1"]
[EndTime "10:37:33 PST"]
[Termination "Kostya_Nikologorskiy won on time"]

1. d4 {[%clk 0:03:00.7]} 1... Nf6 {[%clk 0:02:58.8]} 2. c4 {[%clk 0:03:00.8]}
2... e6 {[%clk 0:02:59.4]} 3. Nf3 {[%clk 0:03:00.2]} 3... d5 {[%clk 0:02:59.7]}
4. Nc3 {[%clk 0:02:58.9]} 4... Be7 {[%clk 0:03:00.3]} 5. e3 {[%clk 0:02:56.3]}
5... O-O {[%clk 0:02:58.7]} 6. Be2 {[%clk 0:02:55.4]} 6... dxc4 {[%clk
0:02:48.1]} 7. Bxc4 {[%clk 0:02:56.3]} 7... c5 {[%clk 0:02:48.7]} 8. O-O {[%clk
0:02:55.8]} 8... cxd4 {[%clk 0:02:40.5]} 9. Qxd4 {[%clk 0:02:55.3]} 9... a6
{[%clk 0:02:41.1]} 10. Rd1 {[%clk 0:02:48.1]} 10... Qc7 {[%clk 0:02:26]} 11. Qf4
{[%clk 0:02:36.1]} 11... Qxf4 {[%clk 0:02:22.5]} 12. exf4 {[%clk 0:02:37]} 12...
b5 {[%clk 0:02:17.7]} 13. Be2 {[%clk 0:02:28.2]} 13... Bb7 {[%clk 0:02:17.8]}
14. Be3 {[%clk 0:02:26.5]} 14... Nc6 {[%clk 0:02:04]} 15. Bb6 {[%clk 0:02:26.3]}
15... Nb4 {[%clk 0:02:01.6]} 16. Ne5 {[%clk 0:02:23.2]} 16... Nfd5 {[%clk
0:01:52.6]} 17. Nxd5 {[%clk 0:02:19.8]} 17... Nxd5 {[%clk 0:01:52.1]} 18. Be3
{[%clk 0:02:20.7]} 18... Rfc8 {[%clk 0:01:38.1]} 19. Rac1 {[%clk 0:02:18.4]}
19... Bf6 {[%clk 0:01:04]} 20. Bf3 {[%clk 0:02:04.4]} 20... g5 {[%clk 0:00:46]}
21. g3 {[%clk 0:01:26.6]} 21... gxf4 {[%clk 0:00:14.8]} 22. Bxf4 {[%clk
0:01:26.1]} 22... Nxf4 {[%clk 0:00:10]} 23. Rxc8+ {[%clk 0:01:18.8]} 23... Rxc8
{[%clk 0:00:07.9]} 24. Bxb7 {[%clk 0:01:18.9]} 24... Rb8 {[%clk 0:00:04.5]} 25.
Nd7 {[%clk 0:01:08.5]} 25... Rxb7 {[%clk 0:00:03.4]} 26. Nxf6+ {[%clk
0:01:09.1]} 26... Kg7 {[%clk 0:00:03.5]} 27. Ne8+ {[%clk 0:01:09.7]} 27... Kf8
{[%clk 0:00:03.7]} 28. Nd6 {[%clk 0:01:04]} 28... Nh3+ {[%clk 0:00:01.5]} 29.
Kg2 {[%clk 0:01:03.9]} 29... Rd7 {[%clk 0:00:02.1]} 30. Kxh3 {[%clk 0:01:03.2]}
1-0

[Event "*** Titled Tuesday Blitz"]
[Site "Chess.com"]
[Date "2020.12.01"]
[Round "4"]
[White "chessdjw"]
[Black "Sokoloco"]
[Result "1-0"]
[WhiteElo "2649"]
[BlackElo "2459"]
[TimeControl "180+1"]
[EndTime "10:37:33 PST"]
[Termination "chessdjw won by resignation"]

1. d4 {[%clk 0:03:00.9]} 1... d6 {[%clk 0:02:55.5]} 2. e4 {[%clk 0:02:59.8]}
2... g6 {[%clk 0:02:55.6]} 3. c4 {[%clk 0:02:57.2]} 3... Bg7 {[%clk 0:02:54.8]}
4. Nc3 {[%clk 0:02:57.8]} 4... Nf6 {[%clk 0:02:54]} 5. f3 {[%clk 0:02:52.3]}
5... O-O {[%clk 0:02:45.2]} 6. Be3 {[%clk 0:02:52.1]} 6... c5 {[%clk 0:02:45.9]}
7. Nge2 {[%clk 0:02:51.7]} 7... Nc6 {[%clk 0:02:38.9]} 8. d5 {[%clk 0:02:49.4]}
8... Ne5 {[%clk 0:02:38.2]} 9. Ng3 {[%clk 0:02:49.2]} 9... e6 {[%clk 0:02:36.6]}
10. Be2 {[%clk 0:02:49.1]} 10... exd5 {[%clk 0:02:32]} 11. cxd5 {[%clk
0:02:48.9]} 11... a6 {[%clk 0:02:29]} 12. a4 {[%clk 0:02:48.4]} 12... h5 {[%clk
0:02:06.9]} 13. O-O {[%clk 0:02:45.5]} 13... Bd7 {[%clk 0:01:52.1]} 14. Qd2
{[%clk 0:02:36.3]} 14... Rb8 {[%clk 0:01:46.7]} 15. a5 {[%clk 0:02:31.1]} 15...
b5 {[%clk 0:01:38.9]} 16. axb6 {[%clk 0:02:30.5]} 16... Qxb6 {[%clk 0:01:39.3]}
17. b4 {[%clk 0:01:51.2]} 17... h4 {[%clk 0:00:51.2]} 18. bxc5 {[%clk
0:01:43.6]} 18... dxc5 {[%clk 0:00:48.6]} 19. Nh1 {[%clk 0:01:34.2]} 19... Bb5
{[%clk 0:00:23.9]} 20. Rfb1 {[%clk 0:01:27.4]} 20... Ne8 {[%clk 0:00:17.5]} 21.
Nxb5 {[%clk 0:01:20.5]} 21... axb5 {[%clk 0:00:17.8]} 22. Rxb5 {[%clk
0:01:20.3]} 22... Qc7 {[%clk 0:00:18.4]} 23. Rxc5 {[%clk 0:01:17.6]} 23... Qd6
{[%clk 0:00:16.8]} 24. Rac1 {[%clk 0:01:14.7]} 24... Rb2 {[%clk 0:00:13.1]} 25.
R5c2 {[%clk 0:01:10.8]} 25... Rxc2 {[%clk 0:00:12.3]} 26. Rxc2 {[%clk
0:01:10.5]} 26... Nc7 {[%clk 0:00:10.9]} 27. Bc5 {[%clk 0:01:08.3]} 27... Qd7
{[%clk 0:00:08.8]} 28. Bxf8 {[%clk 0:01:06.3]} 28... Bxf8 {[%clk 0:00:09.3]} 29.
Nf2 {[%clk 0:01:06.1]} 29... Nb5 {[%clk 0:00:05.2]} 30. f4 {[%clk 0:01:04.4]}
1-0

[Event "*** Titled Tuesday Blitz"]
[Site "Chess.com"]
[Date "2020.12.01"]
[Round "4"]
[White "Nemsko"]
[Black "ChessWarrior3"]
[Result "1-0"]
[WhiteElo "2384"]
[BlackElo "2113"]
[TimeControl "180+1"]
[EndTime "10:37:33 PST"]
[Termination "Nemsko won by resignation"]

1. e4 {[%clk 0:03:00.8]} 1... c5 {[%clk 0:02:58.3]} 2. Nf3 {[%clk 0:03:00.5]}
2... d6 {[%clk 0:02:56.8]} 3. d4 {[%clk 0:03:00.5]} 3... cxd4 {[%clk 0:02:57.7]}
4. Nxd4 {[%clk 0:03:01.3]} 4... Nf6 {[%clk 0:02:57.2]} 5. Nc3 {[%clk 0:03:00.6]}
5... a6 {[%clk 0:02:57.2]} 6. Be3 {[%clk 0:02:56.4]} 6... e5 {[%clk 0:02:55.2]}
7. Nb3 {[%clk 0:02:56.6]} 7... Be6 {[%clk 0:02:50.3]} 8. h3 {[%clk 0:02:55.9]}
8... b5 {[%clk 0:02:47]} 9. Qf3 {[%clk 0:02:46.5]} 9... Nbd7 {[%clk 0:02:34.6]}
10. O-O-O {[%clk 0:02:41.5]} 10... Nb6 {[%clk 0:02:26.5]} 11. g4 {[%clk
0:02:34.7]} 11... Nc4 {[%clk 0:01:35.9]} 12. g5 {[%clk 0:02:21.7]} 12... Nd7
{[%clk 0:01:14.9]} 13. h4 {[%clk 0:02:13]} 13... b4 {[%clk 0:00:34.3]} 14. Nd5
{[%clk 0:02:12.1]} 14... Bxd5 {[%clk 0:00:27.3]} 15. exd5 {[%clk 0:02:13]} 15...
Nxe3 {[%clk 0:00:18.7]} 16. fxe3 {[%clk 0:02:11.6]} 16... a5 {[%clk 0:00:19.6]}
17. Bb5 {[%clk 0:02:06.9]} 17... a4 {[%clk 0:00:17.3]} 18. Nd2 {[%clk
0:02:06.2]} 18... Qb6 {[%clk 0:00:13.1]} 19. Bxd7+ {[%clk 0:02:01.5]} 19... Kxd7
{[%clk 0:00:14]} 20. Qxf7+ {[%clk 0:02:02.4]} 20... Be7 {[%clk 0:00:13.6]} 21.
Qe6+ {[%clk 0:02:02.6]} 21... Ke8 {[%clk 0:00:12.3]} 22. Kb1 {[%clk 0:01:51.4]}
22... Qxe3 {[%clk 0:00:09.9]} 23. Nc4 {[%clk 0:01:48.4]} 23... Qc5 {[%clk
0:00:09.4]} 24. Nd2 {[%clk 0:01:39.3]} 24... Rf8 {[%clk 0:00:09.8]} 25. Rhf1
{[%clk 0:01:38.4]} 25... Rxf1 {[%clk 0:00:09.7]} 26. Rxf1 {[%clk 0:01:39.3]}
26... Rc8 {[%clk 0:00:09.1]} 27. Rc1 {[%clk 0:01:26.9]} 27... Qe3 {[%clk
0:00:08.7]} 28. Qxc8+ {[%clk 0:01:23.2]} 28... Kf7 {[%clk 0:00:08.2]} 29. Rf1+
{[%clk 0:01:20.6]} 29... Kg6 {[%clk 0:00:07]} 30. Qe6+ {[%clk 0:01:19.9]} 30...
Kh5 {[%clk 0:00:06.8]} 31. Qf7+ {[%clk 0:01:19.5]} 31... Kxh4 {[%clk 0:00:06.1]}
32. Rh1+ {[%clk 0:01:16]} 32... Kxg5 {[%clk 0:00:05.9]} 33. Qxg7+ {[%clk
0:01:13.6]} 33... Kf5 {[%clk 0:00:05.7]} 34. Rf1+ {[%clk 0:01:12]} 34... Qf4
{[%clk 0:00:04.7]} 35. Rxf4+ {[%clk 0:01:12.2]} 35... exf4 {[%clk 0:00:05.6]}
36. Qxe7 {[%clk 0:01:12.5]} 36... f3 {[%clk 0:00:05.5]} 37. Qe4+ {[%clk
0:01:13.4]} 1-0

[Event "*** Titled Tuesday Blitz"]
[Site "Chess.com"]
[Date "2020.12.01"]
[Round "4"]
[White "midedu"]
[Black "NitaLucian"]
[Result "0-1"]
[WhiteElo "2085"]
[BlackElo "2303"]
[TimeControl "180+1"]
[EndTime "10:37:34 PST"]
[Termination "NitaLucian won on time"]

1. e4 {[%clk 0:03:00.9]} 1... d6 {[%clk 0:03:00.4]} 2. d4 {[%clk 0:02:56.6]}
2... Nf6 {[%clk 0:03:01.3]} 3. Nc3 {[%clk 0:02:55.8]} 3... e5 {[%clk 0:03:01.3]}
4. Nge2 {[%clk 0:02:55.1]} 4... Nbd7 {[%clk 0:03:01.1]} 5. g3 {[%clk 0:02:53.8]}
5... Be7 {[%clk 0:03:01.3]} 6. Bg2 {[%clk 0:02:53.6]} 6... O-O {[%clk
0:03:01.8]} 7. O-O {[%clk 0:02:53.7]} 7... c6 {[%clk 0:03:01.3]} 8. a4 {[%clk
0:02:53.1]} 8... a5 {[%clk 0:03:00.5]} 9. h3 {[%clk 0:02:52.6]} 9... Qc7 {[%clk
0:03:00.9]} 10. Be3 {[%clk 0:02:50.7]} 10... Re8 {[%clk 0:03:00.7]} 11. f4
{[%clk 0:02:50.3]} 11... b6 {[%clk 0:03:00.6]} 12. Qd2 {[%clk 0:02:46.4]} 12...
Ba6 {[%clk 0:03:00.2]} 13. Rae1 {[%clk 0:02:43.6]} 13... b5 {[%clk 0:02:56.7]}
14. fxe5 {[%clk 0:02:15.8]} 14... dxe5 {[%clk 0:02:56.1]} 15. axb5 {[%clk
0:02:08.2]} 15... cxb5 {[%clk 0:02:55.8]} 16. Nd5 {[%clk 0:01:58.6]} 16... Nxd5
{[%clk 0:02:51.2]} 17. exd5 {[%clk 0:01:58.3]} 17... Bd6 {[%clk 0:02:40.1]} 18.
g4 {[%clk 0:01:55.9]} 18... b4 {[%clk 0:02:35.4]} 19. Rf2 {[%clk 0:01:44.4]}
19... exd4 {[%clk 0:02:29.4]} 20. Bxd4 {[%clk 0:01:36.5]} 20... Bg3 {[%clk
0:02:26.7]} 21. Nxg3 {[%clk 0:01:32.6]} 21... Qxg3 {[%clk 0:02:24.8]} 22. Re3
{[%clk 0:01:07.8]} 22... Rxe3 {[%clk 0:02:20.2]} 23. Qxe3 {[%clk 0:01:05.4]}
23... Qxe3 {[%clk 0:02:18.6]} 24. Bxe3 {[%clk 0:01:05]} 24... Re8 {[%clk
0:02:18.1]} 25. Bd4 {[%clk 0:00:54.1]} 25... f6 {[%clk 0:02:15.1]} 26. c3 {[%clk
0:00:48.3]} 26... b3 {[%clk 0:02:10.5]} 27. d6 {[%clk 0:00:36.7]} 27... Re1+
{[%clk 0:02:03.3]} 28. Kh2 {[%clk 0:00:34.8]} 28... Bc4 {[%clk 0:02:01.8]} 29.
Bc6 {[%clk 0:00:32.2]} 29... Be6 {[%clk 0:02:01.6]} 30. Ba4 {[%clk 0:00:18.8]}
30... Kf7 {[%clk 0:01:59.9]} 31. Rd2 {[%clk 0:00:17.2]} 31... Ra1 {[%clk
0:01:58.2]} 32. Bb5 {[%clk 0:00:15.8]} 32... a4 {[%clk 0:01:58.1]} 33. c4 {[%clk
0:00:15.8]} 33... a3 {[%clk 0:01:57.3]} 34. bxa3 {[%clk 0:00:15.4]} 34... Rxa3
{[%clk 0:01:56.8]} 35. c5 {[%clk 0:00:14.9]} 35... Ra5 {[%clk 0:01:42.6]} 36.
Bxd7 {[%clk 0:00:06.2]} 36... Bxd7 {[%clk 0:01:41.7]} 37. Kg3 {[%clk 0:00:06]}
37... Bc6 {[%clk 0:01:30.1]} 38. Kf2 {[%clk 0:00:05]} 38... Ra4 {[%clk
0:01:25.9]} 39. Ke3 {[%clk 0:00:04.4]} 39... Ke6 {[%clk 0:01:25.4]} 40. Kd3
{[%clk 0:00:03.8]} 40... Kd5 {[%clk 0:01:25.6]} 0-1

[Event "*** Titled Tuesday Blitz"]
[Site "Chess.com"]
[Date "2020.12.01"]
[Round "4"]
[White "Omk124"]
[Black "AlexSuv"]
[Result "0-1"]
[WhiteElo "2324"]
[BlackElo "2556"]
[TimeControl "180+1"]
[EndTime "10:37:36 PST"]
[Termination "AlexSuv won by resignation"]

1. e4 {[%clk 0:03:00.9]} 1... c5 {[%clk 0:02:59.9]} 2. Nf3 {[%clk 0:03:01]} 2...
e6 {[%clk 0:03:00.8]} 3. d4 {[%clk 0:02:59.7]} 3... cxd4 {[%clk 0:03:01.7]} 4.
Nxd4 {[%clk 0:03:00.3]} 4... Nc6 {[%clk 0:03:02.4]} 5. h3 {[%clk 0:03:00.3]}
5... Nf6 {[%clk 0:02:59.6]} 6. Nc3 {[%clk 0:02:59.4]} 6... Bb4 {[%clk
0:02:59.6]} 7. Nxc6 {[%clk 0:02:59.6]} 7... bxc6 {[%clk 0:02:58.7]} 8. Bd3
{[%clk 0:02:59.8]} 8... d5 {[%clk 0:02:56.6]} 9. exd5 {[%clk 0:02:58.7]} 9...
cxd5 {[%clk 0:02:54.1]} 10. O-O {[%clk 0:02:59.2]} 10... O-O {[%clk 0:02:53.6]}
11. Bd2 {[%clk 0:02:58.3]} 11... e5 {[%clk 0:02:38.7]} 12. a3 {[%clk 0:02:48.6]}
12... Be7 {[%clk 0:02:18.9]} 13. Re1 {[%clk 0:02:35]} 13... e4 {[%clk
0:02:17.6]} 14. Bf1 {[%clk 0:02:34.5]} 14... h6 {[%clk 0:02:15.9]} 15. Be3
{[%clk 0:02:34.6]} 15... Be6 {[%clk 0:02:14.3]} 16. Bd4 {[%clk 0:02:34.8]} 16...
Nd7 {[%clk 0:02:13]} 17. b4 {[%clk 0:02:31.7]} 17... Nb6 {[%clk 0:02:08.4]} 18.
Ne2 {[%clk 0:02:21.3]} 18... Bd6 {[%clk 0:01:50.1]} 19. Bxb6 {[%clk 0:02:11.3]}
19... axb6 {[%clk 0:01:47.9]} 20. Nd4 {[%clk 0:02:12.2]} 20... Qf6 {[%clk
0:01:42.7]} 21. Nxe6 {[%clk 0:02:10.7]} 21... fxe6 {[%clk 0:01:41.5]} 22. Qd2
{[%clk 0:02:05.6]} 22... Be5 {[%clk 0:01:39.2]} 23. Ra2 {[%clk 0:01:43.3]} 23...
Bc3 {[%clk 0:01:33.6]} 24. Qe2 {[%clk 0:01:43.5]} 24... Bxe1 {[%clk 0:01:29.9]}
25. Qxe1 {[%clk 0:01:44.4]} 25... Qf4 {[%clk 0:01:23.1]} 26. c3 {[%clk
0:01:43.9]} 26... e5 {[%clk 0:01:18.2]} 27. Rd2 {[%clk 0:01:38.4]} 27... Rfd8
{[%clk 0:01:00.6]} 28. Qd1 {[%clk 0:01:29.3]} 28... e3 {[%clk 0:00:55.2]} 29.
fxe3 {[%clk 0:01:20]} 29... Qxe3+ {[%clk 0:00:56.1]} 30. Kh1 {[%clk 0:01:20.4]}
30... Rxa3 {[%clk 0:00:55.2]} 31. Rxd5 {[%clk 0:01:20.7]} 31... Rf8 {[%clk
0:00:55.8]} 32. Bc4 {[%clk 0:01:20.3]} 32... Kh8 {[%clk 0:00:52.1]} 33. Rd8
{[%clk 0:01:19.5]} 33... Ra8 {[%clk 0:00:50.1]} 34. Rxa8 {[%clk 0:01:09.6]}
34... Rxa8 {[%clk 0:00:49.4]} 35. Bb3 {[%clk 0:01:00.1]} 35... Qxc3 {[%clk
0:00:46]} 36. Qd5 {[%clk 0:01:00.2]} 36... Rf8 {[%clk 0:00:39.3]} 37. Kh2 {[%clk
0:00:57]} 37... Qe3 {[%clk 0:00:35.2]} 38. b5 {[%clk 0:00:55.2]} 38... Qf4+
{[%clk 0:00:35]} 39. Kg1 {[%clk 0:00:55.5]} 39... Rc8 {[%clk 0:00:34.1]} 0-1

[Event "*** Titled Tuesday Blitz"]
[Site "Chess.com"]
[Date "2020.12.01"]
[Round "4"]
[White "GMJustin"]
[Black "pastouche06"]
[Result "0-1"]
[WhiteElo "2305"]
[BlackElo "2506"]
[TimeControl "180+1"]
[EndTime "10:37:41 PST"]
[Termination "pastouche06 won on time"]

1. e4 {[%clk 0:02:49.3]} 1... c6 {[%clk 0:02:58.9]} 2. d4 {[%clk 0:02:48.9]}
2... d5 {[%clk 0:02:59.4]} 3. e5 {[%clk 0:02:49]} 3... c5 {[%clk 0:02:58.8]} 4.
dxc5 {[%clk 0:02:47.9]} 4... e6 {[%clk 0:02:59.3]} 5. a3 {[%clk 0:02:39.7]} 5...
Nc6 {[%clk 0:02:58.8]} 6. b4 {[%clk 0:02:15.5]} 6... a5 {[%clk 0:02:57.5]} 7. c3
{[%clk 0:01:08]} 7... axb4 {[%clk 0:02:45]} 8. cxb4 {[%clk 0:01:08]} 8... Nxb4
{[%clk 0:02:42.4]} 9. axb4 {[%clk 0:01:08.7]} 9... Rxa1 {[%clk 0:02:43]} 10. Bb2
{[%clk 0:01:08.7]} 10... Ra8 {[%clk 0:02:40]} 11. Nc3 {[%clk 0:00:56.4]} 11...
Bd7 {[%clk 0:02:30.7]} 12. Nb5 {[%clk 0:00:52.4]} 12... Nh6 {[%clk 0:02:13.9]}
13. Nf3 {[%clk 0:00:47.5]} 13... f6 {[%clk 0:01:46.7]} 14. exf6 {[%clk
0:00:22.1]} 14... gxf6 {[%clk 0:01:47.6]} 15. Ng5 {[%clk 0:00:18.4]} 15... Bxb5
{[%clk 0:01:12.4]} 16. Bxb5+ {[%clk 0:00:13.7]} 16... Ke7 {[%clk 0:01:12.5]} 17.
Qh5 {[%clk 0:00:11.2]} 17... Bg7 {[%clk 0:01:05]} 18. O-O {[%clk 0:00:10.7]}
18... e5 {[%clk 0:00:52.1]} 19. Nf3 {[%clk 0:00:04.1]} 19... Ra2 {[%clk
0:00:41.3]} 20. Nxe5 {[%clk 0:00:01]} 20... Rxb2 {[%clk 0:00:34.8]} 21. Nd3
{[%clk 0:00:01]} 21... Re2 {[%clk 0:00:35.3]} 0-1